[Event "1st FIDE Olympiad DIS 2023"]
[Site "Belgrade"]
[Date "2023.01.31"]
[Round "2.25"]
[White "Jimenez Moron, Elias"]
[Black "Alam, Khorshed"]
[Result "1-0"]
[ECO "B01"]
[WhiteElo "1967"]
[BlackElo "2065"]
[Annotator "TA"]
[PlyCount "121"]
[EventDate "2023.01.30"]
[EventType "team-tourn"]
[EventCountry "SRB"]
[SourceTitle "playchess.com"]
[Source "ChessBase"]
[SourceQuality "1"]
[WhiteTeam "Panama"]
[BlackTeam "Bangladesh"]
[WhiteTeamCountry "PAN"]
[BlackTeamCountry "BAN"]
[TimeControl "40/5400+30:1800+30"]

{[%evp 11,121,37,35,26,36,33,43,33,33,30,37,37,17,12,44,37,32,40,40,24,28,0,17,0,0,0,39,37,46,43,42,41,112,123,121,113,341,9,9,9,9,13,13,7,10,8,36,36,36,36,36,36,36,0,0,0,0,0,8,6,17,17,66,63,64,64,58,44,44,44,104,111,157,157,823,157,1520,157,157,157,719,701,543,0,271,0,450,157,157,157,1559,698,2131,1963,1963,224,3349,2739,5550,5522,29972,29970,29975,29977,29976,29977,29977,29978,29977,29978,29974,29975]} 1. e4 {[%emt 0:01:04]} d5 {[%emt 0:00:10]} 2. exd5 {[%emt 0:02:34]} Qxd5 {[%emt 0:00:14]} 3. Nc3 {[%emt 0:00:16]} Qd8 {[%emt 0:00:12]} 4. d4 {[%emt 0:00:14]} Nf6 {[%emt 0:01:03]} 5. Nf3 {[%emt 0:00:59]} Bg4 {[%emt 0:00:18]} 6. Be2 {[%emt 0:01:08]} e6 {[%emt 0:02:22]} 7. h3 {[%emt 0:01:37] B01: Scandinavian Defence.} Bxf3 {[%emt 0:00:22]} 8. Bxf3 {[%emt 0:00:20]} c6 {[%emt 0:00:19]} 9. Ne4 {[%emt 0:04:41] White is slightly better.} Nbd7 {[%emt 0:03:11]} 10. O-O {[%emt 0:02:08]} Be7 {[%emt 0:00:48]} 11. c4 {[%emt 0:01:16]} O-O {[%emt 0:03:51]} 12. Nc3 {[%emt 0:00:43]} Nb6 {[%emt 0:06:26]} 13. b3 {[%emt 0:02:37]} Qc7 {[%emt 0:04:45] [#]} 14. Qe2 $146 {[%emt 0:07:34]} ({Predecessor:} 14. Be3 Rad8 15. Qc2 Rfe8 16. Rad1 h6 17. g3 Bb4 18. Bf4 Qe7 19. c5 Nbd5 20. Bd6 {1-0 De Coverly,R (1943)-Kramaley,D (1819) Frome op 2018 (4)}) 14... Rad8 {[%emt 0:03:13]} 15. Rd1 {[%emt 0:01:17]} Rfe8 {[%emt 0:00:44]} 16. Bg5 {[%emt 0:04:19]} h6 {[%emt 0:07:40]} 17. Bh4 {[%emt 0:01:46]} Nc8 {[%emt 0:06:15]} 18. Rac1 {[%emt 0:06:17]} g5 {[%emt 0:02:56]} 19. Bg3 {[%emt 0:00:23]} Bd6 {[%emt 0:00:37]} 20. Be5 {[%emt 0:07:30]} Bxe5 {[%emt 0:15:53]} 21. dxe5 {[%emt 0:00:45]} Rxd1+ {[%emt 0:00:44]} (21... Nd7 $14) 22. Rxd1 $16 {[%emt 0:00:15]} Nd7 {[%emt 0:00:28]} 23. Ne4 {[%emt 0:11:00][%cal Od1d7] Hoping for Rxd7! White is more active.} Kg7 $2 {[%emt 0:08:30] [#]} (23... Rd8 $16 {was worth a try.}) 24. Rxd7 $2 {[%emt 0:10:37]} Qxd7 $11 {[%emt 0:01:06]} 25. Nf6 {[%emt 0:00:12]} Qd8 {[%emt 0:01:20]} 26. Nxe8+ {[%emt 0:00:18]} Qxe8 {[%emt 0:00:10][%mdl 4096] Endgame KQB-KQN} 27. Qd3 {[%emt 0:01:27]} Nb6 {[%emt 0:04:21]} 28. Qd6 {[%emt 0:04:52]} Qd7 {[%emt 0:02:03]} 29. c5 {[%emt 0:00:20]} Qxd6 {[%emt 0:00:42]} 30. exd6 $14 {[%emt 0:00:26] KB-KN} (30. cxd6 $2 Nd7 31. Bh5 Nxe5 $19) 30... Nd7 {[%emt 0:00:05]} 31. b4 {[%emt 0:00:32][%cal Of3c6]} Kf8 {[%emt 0:06:19]} 32. g4 {[%emt 0:02:24]} a5 {[%emt 0:02:07]} 33. a3 {[%emt 0:02:05]} axb4 {[%emt 0:00:10]} 34. axb4 {[%emt 0:00:09]} Ne5 {[%emt 0:01:22]} 35. Be4 {[%emt 0:01:03]} Ke8 {[%emt 0:01:16]} 36. Kf1 {[%emt 0:01:09]} Kd7 {[%emt 0:00:41]} (36... Nd7 $1 $11 {should be considered.}) 37. Ke2 {[%emt 0:01:12]} f6 {[%emt 0:01:05]} 38. Bd3 {[%emt 0:05:32]} b6 {[%emt 0:00:58]} 39. Ke3 {[%emt 0:01:43]} ({Much weaker is} 39. cxb6 Kxd6 40. Ba6 Ng6 $15) 39... bxc5 {[%emt 0:02:06]} 40. bxc5 {[%emt 0:00:16]} Nf7 {[%emt 0:01:05]} (40... Nxd3 41. Kxd3 Ke8 42. h4 $18) (40... Kd8 $14) 41. Kd4 $16 {[%emt 0:34:19]} Nd8 {[%emt 0:32:06]} ({Black should play} 41... Ne5) 42. Kc4 {[%emt 0:07:36]} Nb7 $2 {[%emt 0:00:32]} (42... Nf7 $16) 43. Bg6 $2 {[%emt 0:00:59]} (43. Kb4 $1 $18 {aiming for Be4.} Kc8 44. Ba6) 43... Kd8 $2 {[%emt 0:00:30]} (43... Kc8 $16 44. Be8 Nd8) 44. Bf7 $2 {[%emt 0:00:50]} (44. Be4 $18 {and the rest is easy.} Kd7 45. Kb4) 44... Kd7 {[%emt 0:00:16]} 45. Bg8 {[%emt 0:01:22]} Na5+ $2 {[%emt 0:00:44]} (45... Nd8 $16 46. Kb4 Kc8) 46. Kb4 $18 {[%emt 0:00:27]} Nb7 {[%emt 0:00:12]} 47. Kc4 {[%emt 0:02:23]} (47. f3 $142 $1 f5 48. Bh7 fxg4 49. fxg4 (49. hxg4 Nd8 $18)) 47... Na5+ {[%emt 0:00:08]} 48. Kb4 $2 {[%emt 0:00:15]} (48. Kc3) 48... Nb7 {[%emt 0:00:08]} 49. Bf7 $2 {[%emt 0:00:54]} (49. f3 $1 $18 {is the precise move to win.} f5 50. Bh7 fxg4 51. hxg4 (51. fxg4 Nd8 $18)) 49... Nd8 $16 {[%emt 0:00:41]} 50. Bg6 {[%emt 0:00:24] Strongly threatening Ka5.} Nb7 {[%emt 0:00:10]} (50... Kc8 $16 51. Be8 f5) 51. Bd3 {[%emt 0:00:00]} (51. Be4 $142 e5 52. Bf5+ Kd8 53. Be6) 51... Ke8 {[%emt 0:00:00]} 52. Be4 {[%emt 0:00:00]} Kd7 {[%emt 0:00:00] [#]} 53. f3 $1 {[%emt 0:02:39]} Nd8 $2 {[%emt 0:00:00] [#]} (53... f5 54. gxf5 Nxd6 55. cxd6 exf5 56. Bxf5+ Kxd6) 54. Ka5 $1 $18 {[%emt 0:00:00] Black must now prevent Kb6.} Nf7 {[%emt 0:00:00]} 55. Kb6 {[%emt 0:00:00]} Ne5 {[%emt 0:00:00]} 56. Kb7 {[%emt 0:00:00] White mates.} h5 {[%emt 0:00:00]} 57. gxh5 {[%emt 0:00:00][%cal Bg4h5,Bh5h6,Bh6h7][%mdl 32]} f5 {[%emt 0:00:00] [#]} 58. Bxc6+ $1 {[%emt 0:00:46][%mdl 512]} Nxc6 {[%emt 0:00:00]} 59. h6 {[%emt 0:00:00]} Nd8+ {[%emt 0:00:00]} 60. Kb6 {[%emt 0:00:00]} Nf7 {[%emt 0:00:00]} 61. h7 {[%emt 0:00:00] Weighted Error Value: White=0.76/Black=0.27 (precise)} 1-0

[Event "1st FIDE Olympiad DIS 2023"]
[Site "Belgrade"]
[Date "2023.01.31"]
[Round "2.26"]
[White "Syed Ejaz Husain"]
[Black "Osorio, Jesus Camilo"]
[Result "1-0"]
[ECO "B07"]
[WhiteElo "1952"]
[BlackElo "1859"]
[Annotator "TA"]
[PlyCount "83"]
[EventDate "2023.01.30"]
[EventType "team-tourn"]
[EventCountry "SRB"]
[SourceTitle "playchess.com"]
[Source "ChessBase"]
[SourceQuality "1"]
[BlackTeam "Panama"]
[BlackTeamCountry "PAN"]
[TimeControl "40/5400+30:1800+30"]

{[%evp 11,83,36,39,10,10,0,0,-8,0,-52,-11,-83,-74,-82,-70,-71,-52,-42,-55,-42,0,-44,-43,-49,-35,-38,-33,-73,-73,-70,-69,-78,-65,-92,-90,-105,-97,-115,-100,-102,-97,-141,-144,-152,-144,-144,-120,-204,-211,-210,-199,-202,-200,-567,-541,-568,-563,-555,-559,-616,-608,-685,-520,-855,-840,-1630,-1450,-1343,29993,29994,29994,29995,29995,29990]} 1. e4 {[%emt 0:00:08]} d6 {[%emt 0:00:19]} 2. d4 {[%emt 0:00:13]} Nf6 {[%emt 0:00:08]} 3. Bd3 {[%emt 0:00:27]} g6 {[%emt 0:00:32]} 4. c3 {[%emt 0:00:33]} Bg7 {[%emt 0:00:15]} 5. Ne2 {[%emt 0:00:20]} c5 {[%emt 0:00:55]} 6. O-O {[%emt 0:00:58]} Nc6 {[%emt 0:00:58]} 7. dxc5 {[%emt 0:04:35] B07: Pirc Defence: Miscellaneous Systems.} dxc5 {[%emt 0:00:04] [#]} 8. f3 $146 {[%emt 0:00:40]} ({Predecessor:} 8. Be3 Ne5 9. Bb5+ Bd7 10. Bxd7+ Qxd7 11. Bxc5 Nxe4 12. Qxd7+ Nxd7 13. Be3 O-O 14. Rd1 Rfd8 {½-½ Arnott,J (2127)-McKay,R (2340) BCF-chT2b 1617 (4NCL) 2016 (4.64)}) 8... O-O {[%emt 0:00:17][%cal Bh8f8,Bf8d8,Bd8d3][%mdl 32]} 9. Be3 {[%emt 0:00:25] The position is equal.} Ne5 {[%emt 0:00:30]} 10. Bc2 {[%emt 0:00:43]} (10. Nc1 $11) 10... Qc7 {[%emt 0:00:14]} (10... b6 $5) 11. Bf4 {[%emt 0:01:38]} (11. Na3 $11 {remains equal.}) 11... Nh5 $17 {[%emt 0:00:35]} 12. Bc1 {[%emt 0:01:04]} Rd8 {[%emt 0:02:57]} 13. Qe1 {[%emt 0:00:09]} Nd3 {[%emt 0:00:22]} 14. Bxd3 {[%emt 0:01:06]} Rxd3 {[%emt 0:00:02]} 15. Na3 {[%emt 0:00:14]} a6 {[%emt 0:00:30]} 16. Nc2 {[%emt 0:00:58]} (16. g4 $5 {[%cal Rg4h5]} Nf6 17. Nf4 $11) 16... b5 $36 {[%emt 0:00:25][%mdl 2048] Black has good play.} ({Don't do} 16... c4 17. Nb4 $14) 17. g4 {[%emt 0:01:02]} Nf6 {[%emt 0:00:19]} 18. Nf4 {[%emt 0:00:59]} Rd8 {[%emt 0:00:22]} 19. Be3 {[%emt 0:01:39]} e5 {[%emt 0:00:19]} 20. Ng2 {[%emt 0:01:32]} Be6 {[%emt 0:01:10]} 21. Qf2 {[%emt 0:00:00] White is weak on the light squares} Rac8 {[%emt 0:00:52]} 22. a3 {[%emt 0:00:17]} Bb3 {[%emt 0:00:47]} 23. Rac1 {[%emt 0:00:34]} Nd7 {[%emt 0:02:47]} 24. Na1 {[%emt 0:00:22]} Bc4 {[%emt 0:01:37]} 25. Rfd1 {[%emt 0:00:05]} Bf8 {[%emt 0:00:44]} 26. b3 {[%emt 0:00:21]} Be6 {[%emt 0:00:07]} 27. Rd2 {[%emt 0:00:27]} Nb6 {[%emt 0:03:42]} 28. Rcd1 {[%emt 0:00:42]} a5 {[%emt 0:01:49][%cal Ba6a5,Ba5a4][%mdl 32]} 29. h3 {[%emt 0:01:11]} (29. Rxd8 $17 Rxd8 30. Rxd8 Qxd8 31. Qd2) 29... a4 $19 {[%emt 0:00:25]} 30. Rxd8 {[%emt 0:34:28]} Rxd8 {[%emt 0:00:17]} 31. Rxd8 {[%emt 0:00:05]} Qxd8 {[%emt 0:00:06]} 32. Kh2 $2 {[%emt 0:00:02] [#]} (32. Qc2 {is more resistant.}) 32... axb3 {[%emt 0:00:34]} 33. Nxb3 {[%emt 0:00:05]} Bxb3 {[%emt 0:00:13]} 34. Bxc5 {[%emt 0:00:02]} Nc4 {[%emt 0:01:47]} 35. Bb4 {[%emt 0:01:28]} Bxb4 {[%emt 0:01:11]} 36. axb4 {[%emt 0:00:04]} Qd2 {[%emt 0:00:46]} 37. Qc5 {[%emt 0:00:06]} (37. Qxd2 $142 Nxd2 38. Kg3) 37... Qxc3 {[%emt 0:01:04]} 38. Kg3 {[%emt 0:00:42]} Bd1 {[%emt 0:00:21]} 39. Nh4 {[%emt 0:00:48]} g5 $4 {[%emt 0:00:50][%mdl 8192] [#]} (39... Qe1+ $19 40. Qf2 Qxb4) 40. Qc8+ {[%emt 0:00:40] White mates.} Kg7 {[%emt 0:00:03]} 41. Nf5+ {[%emt 0:30:29]} Kg6 {[%emt 0:31:07]} 42. Qc6+ {[%emt 0:03:32] Never resign too early!   Weighted Error Value: White=0.57/Black=0.33} 1-0

[Event "1st FIDE Olympiad DIS 2023"]
[Site "Belgrade"]
[Date "2023.01.31"]
[Round "2.28"]
[White "Sarkar, Ali Newaz"]
[Black "Singares, Mario Oscar"]
[Result "1-0"]
[ECO "C50"]
[WhiteElo "1809"]
[BlackElo "1425"]
[Annotator "NA RC COMBH"]
[PlyCount "45"]
[EventDate "2023.01.30"]
[EventType "team-tourn"]
[EventCountry "SRB"]
[SourceTitle "playchess.com"]
[Source "ChessBase"]
[SourceQuality "1"]
[WhiteTeam "Bangladesh"]
[BlackTeam "Panama"]
[WhiteTeamCountry "BAN"]
[BlackTeamCountry "PAN"]
[TimeControl "40/5400+30:1800+30"]

{[%evp 22,42,368,345,484,32767,382,32767,412,471,562,541,619,462,895,716,32767,32767,718,485,737,516,1272]} 1. e4 {[%emt 0:00:24]} e5 {[%emt 0:01:36]} 2. Nf3 {[%emt 0:00:22]} Nc6 {[%emt 0:00:18]} 3. Bc4 {[%emt 0:00:59]} Nh6 {[%emt 0:02:18]} 4. a3 {[%emt 0:00:51]} Be7 {[%emt 0:01:17]} 5. d3 {[%emt 0:00:16]} O-O {[%emt 0:00:37]} 6. O-O {[%emt 0:00:29]} d6 {[%emt 0:02:13]} 7. h3 {[%emt 0:00:11]} Ng4 {[%emt 0:07:02]} 8. hxg4 {[%emt 0:00:00]} Bxg4 {[%emt 0:02:35]} 9. c3 {[%emt 0:00:00]} h6 {[%emt 0:01:21]} 10. Be3 {[%emt 0:00:00]} a6 {[%emt 0:05:50]} 11. Nbd2 {[%emt 0:00:20]} b5 {[%emt 0:00:38]} 12. Bd5 {[%emt 0:00:35]} Qd7 {[%emt 0:04:30]} 13. Qe1 {[%emt 0:00:43]} Bxf3 {[%emt 0:07:12]} 14. Nxf3 {[%emt 0:00:33]} h5 {[%emt 0:02:14]} 15. Qe2 {[%emt 0:01:01]} h4 {[%emt 0:01:09]} 16. Bg5 {[%emt 0:00:59]} h3 {[%emt 0:11:17]} 17. g3 {[%emt 0:00:53]} h2+ {[%emt 0:05:59]} (17... Rae8 $142 18. Kh2 Nd8) 18. Kxh2 {[%emt 0:00:44]} Rae8 {[%emt 0:11:12]} 19. Bxc6 {[%emt 0:02:15]} Qxc6 {[%emt 0:04:40]} 20. Kg2 {[%emt 0:00:20]} d5 {[%emt 0:02:02]} 21. Rh1 {[%emt 0:01:09]} dxe4 $18 {[%emt 0:01:15]} 22. Qxe4 {[%emt 0:00:45]} Qe6 {[%emt 0:04:12]} 23. Qh7# {[%emt 0:00:16]} 1-0

[Event "1st FIDE Olympiad DIS 2023"]
[Site "Belgrade"]
[Date "2023.01.31"]
[Round "2.29"]
[White "Nikac, Predrag"]
[Black "Miheso, Clement Chomu"]
[Result "1-0"]
[ECO "C55"]
[WhiteElo "2285"]
[BlackElo "1615"]
[Annotator "TA"]
[PlyCount "71"]
[EventDate "2023.01.30"]
[EventType "team-tourn"]
[EventCountry "SRB"]
[SourceTitle "playchess.com"]
[Source "ChessBase"]
[SourceQuality "1"]
[WhiteTeam "Montenegro"]
[BlackTeam "Kenya"]
[WhiteTeamCountry "MNE"]
[BlackTeamCountry "KEN"]
[TimeControl "40/5400+30:1800+30"]

{[%evp 9,71,41,46,41,49,45,103,28,79,82,165,175,168,160,195,194,189,177,290,269,345,360,466,428,502,508,504,503,541,494,546,545,558,535,526,509,963,961,844,764,741,719,29983,29984,29983,1026,990,949,905,683,632,664,636,633,621,612,592,556,1152,1152,911,1026,967,954]} 1. e4 {[%emt 0:00:14]} e5 {[%emt 0:00:13]} 2. Bc4 {[%emt 0:00:10]} Nf6 {[%emt 0:00:41]} 3. d3 {[%emt 0:00:08]} d6 {[%emt 0:01:32]} 4. Nf3 {[%emt 0:00:18]} Nc6 {[%emt 0:00:27]} 5. a4 {[%emt 0:02:41]} Bg4 {[%emt 0:03:16]} 6. h3 {[%emt 0:00:40] C55: Two Knights: 4 d3, 4 d4 exd4 5 e5 and Max Lange Attack.} Bh5 {[%emt 0:01:02] [#]} 7. a5 $146 {[%emt 0:01:02][%cal Ba4a5,Ba5a6][%mdl 32]} ({Predecessor:} 7. Nbd2 Be7 8. c3 O-O 9. Ba2 Rb8 10. Nf1 d5 11. Qe2 dxe4 12. dxe4 Qd7 13. Ng3 Bxf3 14. Qxf3 {1-0 Whatley,S (1855)-Mehringer,J (1961) Gibraltar Masters 12th 2014 (8)}) 7... Nd4 {[%emt 0:02:32]} (7... a6 $14) 8. Nbd2 {[%emt 0:00:33]} (8. g4 $16 Bg6 9. Nxd4 exd4 10. O-O) 8... Be7 {[%emt 0:03:56]} (8... Nxf3+ $11 9. Nxf3 c6) 9. g4 $16 {[%emt 0:08:38] Black must now prevent Nxd4.} Bg6 {[%emt 0:01:53]} (9... Nxf3+ $16 10. Qxf3 (10. Nxf3 Bg6 $14) 10... Bg6) 10. Nxd4 $18 {[%emt 0:00:35]} exd4 {[%emt 0:00:18]} 11. a6 {[%emt 0:05:26]} Qc8 {[%emt 0:02:30]} 12. f4 {[%emt 0:00:52][%cal Bf2f4,Bf4f5][%mdl 32] Threatens to win with axb7.} h6 {[%emt 0:03:22]} 13. Nf3 {[%emt 0:04:03]} c5 {[%emt 0:04:56]} (13... O-O {keeps fighting.} 14. O-O (14. Nxd4 c6 $16) 14... b6 15. Nxd4 c6) 14. e5 {[%emt 0:11:04]} dxe5 {[%emt 0:07:15]} 15. Nxe5 {[%emt 0:00:27]} b6 {[%emt 0:04:27]} 16. f5 {[%emt 0:01:52]} Qc7 {[%emt 0:03:31] Black is weak on the light squares} 17. Qe2 {[%emt 0:02:22]} (17. Nxg6 Qg3+ 18. Kf1 fxg6 $11) 17... Bh7 {[%emt 0:05:42]} 18. Bxf7+ {[%emt 0:11:07]} Kf8 {[%emt 0:02:26]} 19. Bf4 {[%emt 0:01:10]} Bd6 {[%emt 0:01:56]} 20. Be6 {[%emt 0:00:32]} Bxe5 {[%emt 0:06:47]} 21. Bxe5 {[%emt 0:06:35]} Qc6 {[%emt 0:00:25]} 22. Qh2 {[%emt 0:03:45]} Ne8 {[%emt 0:03:37]} (22... Bg8 $142 23. Bd6+ Ke8) 23. O-O {[%emt 0:00:24]} Bg8 {[%emt 0:00:56] [#]} 24. f6 $1 {[%emt 0:03:35]} gxf6 {[%emt 0:03:03]} 25. Bxf6 {[%emt 0:00:56] Threatening mate with Bh4+.} Nxf6 {[%emt 0:01:56]} 26. Rxf6+ {[%emt 0:00:11]} Ke7 {[%emt 0:05:39] [#]} 27. Qe5 $1 {[%emt 0:03:05]} Qd6 {[%emt 0:06:49] White is clearly winning.} 28. Qxd6+ {[%emt 0:05:56]} (28. Bxg8+ $2 {perishes.} Qxe5 29. Re6+ Qxe6 30. Bxe6 Kxe6 $19) 28... Kxd6 {[%emt 0:00:13]} 29. Re1 {[%emt 0:00:28]} Ke7 {[%emt 0:05:02]} 30. Rg6 {[%emt 0:00:17]} ({Inferior is} 30. Bxg8+ Kxf6 31. Bd5 Rae8 32. Rf1+ Ke5 33. Rf5+ Kd6 $15) 30... Bxe6 {[%emt 0:03:18]} 31. Rexe6+ {[%emt 0:00:12] KRR-KRR} Kf7 {[%emt 0:00:56]} 32. Ref6+ {[%emt 0:00:23]} Ke7 {[%emt 0:00:25]} 33. Rxh6 {[%emt 0:00:10]} Rhf8 {[%emt 0:01:48]} 34. Rxf8 {[%emt 0:00:20]} Rxf8 {[%emt 0:00:10]} 35. Rh7+ {[%emt 0:00:08]} Kf6 {[%emt 0:05:39]} 36. Rxa7 {[%emt 0:00:30] White took control after the opening. Artfully played by Nikac.   Weighted Error Value: White=0.22 (precise) /Black=0.64} 1-0

[Event "1st FIDE Olympiad DIS 2023"]
[Site "Belgrade"]
[Date "2023.01.31"]
[Round "2.30"]
[White "Sadam Ali Sheikh"]
[Black "Ivanovic, Milan"]
[Result "1-0"]
[ECO "D02"]
[WhiteElo "1578"]
[BlackElo "1908"]
[Annotator "TA"]
[PlyCount "89"]
[EventDate "2023.01.30"]
[EventType "team-tourn"]
[EventCountry "SRB"]
[SourceTitle "playchess.com"]
[Source "ChessBase"]
[SourceQuality "1"]
[WhiteTeam "Kenya"]
[BlackTeam "Montenegro"]
[WhiteTeamCountry "KEN"]
[BlackTeamCountry "MNE"]
[TimeControl "40/5400+30:1800+30"]

{[%evp 14,89,12,19,39,36,18,-210,-177,-253,-245,-257,-246,-269,-234,-269,-253,-285,-214,-273,-248,-264,-256,-239,-231,-239,-225,-240,-226,-214,-210,-244,-204,-259,-237,-232,76,94,529,519,891,870,903,859,887,903,881,863,983,997,910,801,762,515,578,588,792,772,1416,1381,1050,696,666,636,742,713,1122,1066,1019,1010,12835,12830,12845,12846,12847,12847,12847,12847]} 1. d4 {[%emt 0:00:13]} d5 {[%emt 0:00:11]} 2. Bf4 {[%emt 0:00:14]} Nf6 {[%emt 0:00:51]} 3. e3 {[%emt 0:00:31]} e6 {[%emt 0:01:15]} 4. Nf3 {[%emt 0:01:33]} Nbd7 {[%emt 0:00:33]} 5. Nbd2 {[%emt 0:07:42]} c5 {[%emt 0:00:49]} 6. c3 {[%emt 0:00:09]} Be7 {[%emt 0:01:54]} 7. Bd3 {[%emt 0:00:22]} b6 {[%emt 0:01:49]} 8. Ne5 {[%emt 0:01:04]} Nxe5 {[%emt 0:03:14] D02: 1 d4 d5 2 Nf3 sidelines, including 2...Nf6 3 g3 and 2...Nf6 3 Bf4.} 9. dxe5 {[%emt 0:06:32]} Nd7 {[%emt 0:04:43]} 10. Qg4 $2 {[%emt 0:06:09]} (10. c4 $11) 10... g5 $19 {[%emt 0:02:32] Black is clearly better.} 11. h4 {[%emt 0:10:46]} ({But not} 11. Bg3 h5 12. Qa4 h4 $19) (11. Bxg5 $142 Bxg5 12. f4) 11... h5 {[%emt 0:09:07]} (11... gxf4 $2 {is the wrong capture.} 12. Qg7 Rf8 13. exf4 $19) 12. Qg3 {[%emt 0:20:33][%cal Rh4g5]} gxf4 {[%emt 0:01:41] [#]} 13. exf4 $146 {[%emt 0:00:25]} ({Predecessor:} 13. Qg7 Rf8 14. exf4 c4 15. Be2 Nc5 16. Nf3 Ba6 17. g3 Nd3+ 18. Kf1 {0-1 Beukema,J (2299)-Viani,A (2404) Dieren op 2018 (6)}) 13... Bf8 {[%emt 0:01:41]} 14. O-O-O {[%emt 0:00:17]} Qc7 {[%emt 0:07:11]} 15. Nf3 {[%emt 0:00:35]} Bh6 {[%emt 0:06:43]} 16. Kb1 {[%emt 0:00:29]} Nf8 {[%emt 0:02:54]} 17. Rhe1 {[%emt 0:01:31]} Bd7 {[%emt 0:02:53]} 18. Ng5 {[%emt 0:03:06]} Ba4 {[%emt 0:07:10] Repels c4} 19. b3 {[%emt 0:02:52]} c4 {[%emt 0:04:21]} 20. Bc2 {[%emt 0:03:47]} cxb3 {[%emt 0:00:52]} 21. axb3 {[%emt 0:00:03]} Bc6 {[%emt 0:06:47]} 22. Kb2 {[%emt 0:02:03]} b5 {[%emt 0:01:49]} 23. Rd4 {[%emt 0:04:28]} a5 {[%emt 0:04:46][%cal Ob5b4]} 24. f5 {[%emt 0:02:59]} Rg8 $2 {[%emt 0:03:27]} (24... a4 $19 {aiming for ...axb3.} 25. Ra1 exf5 26. Bxf5 Bxg5 27. hxg5 Rg8) 25. Nxe6 $1 $16 {[%emt 0:01:06][%mdl 64] [#] Discovered Attack. White has more active pieces.} Rxg3 $4 {[%emt 0:17:57][%mdl 8192]} (25... fxe6 $16 26. Qxg8 exf5) 26. Nxc7+ $18 {[%emt 0:02:13] White is clearly winning.} Ke7 {[%emt 0:00:47]} (26... Kd8 $142 27. Nxa8 Rg4 28. Rxg4 hxg4) 27. fxg3 {[%emt 0:02:56]} Rd8 {[%emt 0:00:40]} 28. Bd1 {[%emt 0:04:57]} Rd7 {[%emt 0:01:13]} 29. Na6 {[%emt 0:00:29]} Ra7 {[%emt 0:00:20]} 30. Nc5 {[%emt 0:00:05]} Nd7 {[%emt 0:01:23]} 31. Nxd7 {[%emt 0:01:14]} Kxd7 {[%emt 0:00:19]} 32. e6+ {[%emt 0:00:32]} fxe6 {[%emt 0:00:04]} 33. fxe6+ {[%emt 0:02:36]} Ke7 {[%emt 0:00:02]} 34. Bxh5 {[%emt 0:00:19]} Bg7 {[%emt 0:00:03]} 35. Rf4 {[%emt 0:01:18] [#] Strongly threatening Rf7+.} b4 {[%emt 0:00:38]} 36. Rf7+ {[%emt 0:00:04]} Kd6 {[%emt 0:00:12]} 37. Rxg7 {[%emt 0:06:40]} Rxg7 {[%emt 0:00:06][%mdl 4096] Endgame KRB-KRB} 38. g4 {[%emt 0:01:19]} bxc3+ {[%emt 0:00:25]} 39. Kxc3 {[%emt 0:00:02]} Ke7 {[%emt 0:00:15]} 40. Kd4 {[%emt 0:00:34]} a4 {[%emt 0:00:11]} 41. bxa4 {[%emt 0:30:25]} Bxa4 {[%emt 0:30:03]} 42. Ra1 {[%emt 0:00:32]} Bc6 {[%emt 0:00:44]} 43. Ra7+ {[%emt 0:00:21]} Kf6 {[%emt 0:00:02]} 44. Rxg7 {[%emt 0:00:28]} Kxg7 {[%emt 0:00:04]} 45. e7 {[%emt 0:00:16] Weighted Error Value: White=0.48/Black=0.70} 1-0

[Event "1st FIDE Olympiad DIS 2023"]
[Site "Belgrade"]
[Date "2023.01.31"]
[Round "2.31"]
[White "Damjanovic, Radovan"]
[Black "Wambalo Wong"]
[Result "1-0"]
[ECO "C06"]
[WhiteElo "1807"]
[BlackElo "1337"]
[Annotator "NA RC COMBH"]
[PlyCount "43"]
[EventDate "2023.01.30"]
[EventType "team-tourn"]
[EventCountry "SRB"]
[SourceTitle "playchess.com"]
[Source "ChessBase"]
[SourceQuality "1"]
[WhiteTeam "Montenegro"]
[BlackTeam "Kenya"]
[WhiteTeamCountry "MNE"]
[BlackTeamCountry "KEN"]
[TimeControl "40/5400+30:1800+30"]

1. e4 {[%emt 0:00:52]} e6 {[%emt 0:00:39]} 2. d4 {[%emt 0:00:14]} d5 {[%emt 0:00:19]} 3. Bd3 {[%emt 0:01:57]} Nf6 {[%emt 0:00:35]} 4. Nd2 {[%emt 0:00:39]} c5 {[%emt 0:01:15]} 5. c3 {[%emt 0:01:17]} Nc6 {[%emt 0:00:33]} 6. e5 {[%emt 0:05:59]} Nd7 {[%emt 0:00:46]} 7. Ndf3 {[%emt 0:02:14]} Qb6 {[%emt 0:00:44]} 8. Ne2 {[%emt 0:02:52]} a5 {[%emt 0:04:14]} 9. O-O {[%emt 0:01:16]} Be7 {[%emt 0:04:33]} 10. Bc2 {[%emt 0:11:50]} cxd4 {[%emt 0:01:49]} 11. cxd4 {[%emt 0:01:30]} Nb4 {[%emt 0:00:36]} 12. Ba4 {[%emt 0:04:39]} O-O $16 {[%emt 0:03:51]} 13. a3 {[%emt 0:01:36]} Nc6 {[%emt 0:00:43]} 14. Qd3 {[%emt 0:02:44]} Qc7 {[%emt 0:01:15]} 15. Ng5 {[%emt 0:08:17]} Bxg5 {[%emt 0:00:58]} 16. Bxg5 {[%emt 0:00:09]} b6 {[%emt 0:00:22]} (16... f6 $16 {is a better defense.}) 17. Rfc1 {[%emt 0:07:29]} Bb7 {[%emt 0:04:20]} 18. Qg3 {[%emt 0:04:17]} Rfc8 {[%emt 0:01:53]} 19. Rc3 {[%emt 0:02:33]} Ndb8 {[%emt 0:09:44]} 20. Qh4 {[%emt 0:02:10]} Ba6 {[%emt 0:07:16]} 21. Rh3 {[%emt 0:01:52]} h6 {[%emt 0:02:17]} 22. Bxh6 {[%emt 0:03:15]} 1-0